Workbook

Sheet Report1
A1: The Drake (13050)
A2: Statement (12 months)
A3: UNAUDITED - ACCRUAL
A4: Period = Nov 2024-Oct 2025
A5: Book = Accrual ; Tree = ysi_is
C6: Nov 2024 | D6: Dec 2024 | E6: Jan 2025 | F6: Feb 2025 | G6: Mar 2025 | H6: Apr 2025 | I6: May 2025 | J6: Jun 2025 | K6: Jul 2025 | L6: Aug 2025 | M6: Sep 2025 | N6: Oct 2025 | O6: Total
A8: 5000-0000 | B8: RECEIPTS
A10: 5040-0000 | B10: GROSS RENTAL REVENUE
A11: 5100-0000 | B11: RENT | C11: 46880 | D11: 46880 | E11: 46880 | F11: 44938.86 | G11: 46880 | H11: 45800.9 | I11: 46880 | J11: 46676.71 | K11: 46880 | L11: 46880 | M11: 46880 | N11: 46880 | O11: =SUM(C11:N11) -> 559336.47
A12: 5110-0000 | B12: LEASES BELOW/OVER MARKET | C12: 8417.99 | D12: 6427.97 | E12: -1252 | F12: -1693.29 | G12: -1112 | H12: -989 | I12: -2335.5 | J12: -2298 | K12: -941 | L12: -2600 | M12: -3851 | N12: -4526 | O12: =SUM(C12:N12) -> -6751.83
A13: 5130-0000 | B13: GROSS POSSIBLE RENT | C13: =SUM(C11:C12) -> 55297.99 | D13: =SUM(D11:D12) -> 53307.97 | E13: 45628 | F13: 43245.57 | G13: 45768 | H13: 44811.9 | I13: 44544.5 | J13: 44378.71 | K13: 45939 | L13: 44280 | M13: 43029 | N13: 42354 | O13: =SUM(O11:O12) -> 552584.64
A15: 5139-0000 | B15: RENTAL LOSSES
A16: 5140-0000 | B16: LOST RENT-VACANCY | C16: -2370 | D16: -10683 | E16: -3831.98 | F16: -6592.39 | G16: -4406.5 | H16: -4672.48 | I16: -12110 | J16: -13309 | K16: -16218.82 | L16: -12877.47 | M16: -8013 | N16: -11720 | O16: =SUM(C16:N16) -> -106804.64
A17: 5152-0000 | B17: LOST RENT-CONCESSIONS | C17: 0 | D17: 0 | E17: -2378.6 | F17: -246 | G17: 0 | H17: 0 | I17: 0 | J17: 0 | K17: 0 | L17: 0 | M17: -5177.9 | N17: 0 | O17: =SUM(C17:N17) -> -7802.5
A18: 5198-0000 | B18: TOTAL RENT LOSSES | C18: =-(C16+C17) -> 2370 | D18: =-(D16+D17) -> 10683 | E18: 6210.58 | F18: 6838.39 | G18: 4406.5 | H18: 4672.48 | I18: 12110 | J18: 13309 | K18: 16218.82 | L18: 12877.47 | M18: 13190.9 | N18: 11720 | O18: =-(O16+O17) -> 114607.14
A19: 5199-0000 | B19: NET RENT RECEIPTS | C19: =C13-C18 -> 52927.99 | D19: =D13-D18 -> 42624.97 | E19: 39417.42 | F19: 36407.18 | G19: 41361.5 | H19: 40139.42 | I19: 32434.5 | J19: 31069.71 | K19: 29720.18 | L19: 31402.53 | M19: 29838.1 | N19: 30634 | O19: =O13-O18 -> 437977.5
A21: 5200-0000 | B21: OTHER RECEIPTS
A22: 5201-0000 | B22: Parking | C22: 0 | D22: 0 | E22: 0 | F22: 0 | G22: 0 | H22: 25 | I22: 0 | J22: 0 | K22: 0 | L22: 0 | M22: 0 | N22: 0 | O22: =SUM(C22:N22) -> 25
A23: 5215-0000 | B23: REDECORATION FEES | C23: 0 | D23: 0 | E23: 0 | F23: 250 | G23: 0 | H23: 0 | I23: 0 | J23: 1540.43 | K23: -186 | L23: 500 | M23: 0 | N23: 0 | O23: =SUM(C23:N23) -> 2104.43
A24: 5251-0000 | B24: LATE FEES | C24: 0 | D24: 0 | E24: 0 | F24: 0 | G24: 825.5 | H24: 0 | I24: 3096.8 | J24: 0 | K24: 1961.7 | L24: 1004.2 | M24: 0 | N24: 0 | O24: 6888.2
A25: 5255-0000 | B25: LEGAL FEES/COURT COSTS | C25: 0 | D25: 0 | E25: -140.75 | F25: 0 | G25: 0 | H25: 0 | I25: 0 | J25: -577 | K25: 0 | L25: 0 | M25: 0 | N25: 0 | O25: -717.75
A26: 5256-0000 | B26: RESERVE FOR BAD DEBT | C26: -3183.94 | D26: -3183.89 | E26: 0 | F26: 0 | G26: 0 | H26: 0 | I26: 0 | J26: 0 | K26: 0 | L26: 0 | M26: 0 | N26: 0 | O26: -6367.83
A27: 5306-0000 | B27: APPLICATION FEES | C27: 0 | D27: 0 | E27: 200 | F27: 100 | G27: 0 | H27: 0 | I27: 0 | J27: 0 | K27: 0 | L27: 150 | M27: 0 | N27: 0 | O27: 450
A28: 5310-0000 | B28: MISCELLANEOUS INCOME | C28: 676 | D28: 598 | E28: 413 | F28: 409.07 | G28: 120 | H28: 104 | I28: 1084.87 | J28: 80 | K28: 80 | L28: 72 | M28: -605.25 | N28: 0 | O28: 3031.69
A29: 5316-0000 | B29: UTILITIES - WATER/SEWER | C29: 1927.36 | D29: 0 | E29: 0 | F29: 1453.19 | G29: 1551.31 | H29: 1204.4 | I29: 1303.52 | J29: 1303.52 | K29: 1006.18 | L29: 1208.51 | M29: 0 | N29: 0 | O29: 10957.99
A30: 5318-0000 | B30: TRASH REMOVAL INCOME | C30: 0 | D30: 0 | E30: 0 | F30: 0 | G30: -270 | H30: -252 | I30: -168 | J30: -198 | K30: -198 | L30: -198 | M30: -180 | N30: 0 | O30: -1464
A31: 5399-0000 | B31: TOTAL OTHER RECEIPTS | C31: =SUM(C22:C30) -> -580.58 | D31: =SUM(D22:D30) -> -2585.89 | E31: 472.25 | F31: 2212.26 | G31: 2226.81 | H31: 1081.4 | I31: 5317.19 | J31: 2148.95 | K31: 2663.88 | L31: 2736.71 | M31: -785.25 | N31: 0 | O31: =SUM(O22:O30) -> 14907.73
A32: 5990-0000 | B32: TOTAL RECEIPTS | C32: =C19+C31 -> 52347.41 | D32: =D19+D31 -> 40039.08 | E32: 39889.67 | F32: 38619.44 | G32: 43588.31 | H32: 41220.82 | I32: 37751.69 | J32: 33218.66 | K32: 32384.06 | L32: 34139.24 | M32: 29052.85 | N32: 30634 | O32: =O19+O31 -> 452885.23
A34: 6100-0000 | B34: OPERATING EXPENSES
A36: 6100-5000 | B36: ADMINISTRATIVE EXPENSES
A37: 6102-0000 | B37: ADVERTISING | C37: 194.83 | D37: 0 | E37: 0 | F37: 0 | G37: 348.39 | H37: 450 | I37: 900 | J37: 900 | K37: 0 | L37: 0 | M37: 0 | N37: 0 | O37: =SUM(C37:N37) -> 2793.22
A38: 6103-0000 | B38: MARKETING | C38: 0 | D38: 0 | E38: 0 | F38: 300 | G38: 300 | H38: 0 | I38: 0 | J38: 0 | K38: 0 | L38: 0 | M38: 0 | N38: 0 | O38: =SUM(C38:N38) -> 600
A39: 6104-0000 | B39: ACCOUNTING EXPENSE | C39: 0 | D39: 0 | E39: 0 | F39: 0 | G39: 0 | H39: 0 | I39: =200+648.0833 -> 848.0833 | J39: 648.0833 | K39: 648.0833 | L39: 648.0833 | M39: 648.0833 | N39: 0 | O39: 3440.4165
A40: 6108-0000 | B40: BANK FEES | C40: 25 | D40: -25 | E40: 25.13 | F40: 0 | G40: 25 | H40: 1.95 | I40: 25 | J40: 0.13 | K40: 0.39 | L40: 0 | M40: 0 | N40: 0 | O40: 77.6
A41: 6125-0000 | B41: COURT COSTS | C41: 0 | D41: 0 | E41: 972 | F41: 0 | G41: 342 | H41: 1026 | I41: 10288 | J41: 0 | K41: 0 | L41: 0 | M41: 0 | N41: 0 | O41: 12628
A42: 6130-0000 | B42: MANAGEMENT FEE | C42: 1000 | D42: 0 | E42: 0 | F42: 1578.91 | G42: 1849.6 | H42: 1668.99 | I42: 1118.69 | J42: 1398.19 | K42: 3040.9 | L42: 1353.65 | M42: 0 | N42: 0 | O42: 13008.93
A43: 6140-0000 | B43: OFFICE SUPPLIES | C43: 0 | D43: 0 | E43: 0 | F43: 0 | G43: 0 | H43: 0 | I43: 0 | J43: 0 | K43: 1170 | L43: 0 | M43: 0 | N43: 0 | O43: 1170
A44: 6170-0000 | B44: PROFESSIONAL SERVICES | C44: 0 | D44: 0 | E44: 0 | F44: 0 | G44: 0 | H44: 0 | I44: 0 | J44: 0 | K44: 2000 | L44: 0 | M44: 0 | N44: 0 | O44: 2000
A45: 6199-0000 | B45: TOTAL ADMINISTRATIVE EXPENSES | C45: =SUM(C37:C44) -> 1219.83 | D45: =SUM(D37:D44) -> -25 | E45: 997.13 | F45: 1878.91 | G45: 2864.99 | H45: 3146.94 | I45: 13179.7733 | J45: 2946.4033 | K45: 6859.3733 | L45: 2001.7333 | M45: 648.0833 | N45: 0 | O45: 35718.1665
A47: 6200-0000 | B47: PERSONNEL
A48: 6240-0000 | B48: OFFICE SALARIES | C48: 0 | D48: 0 | E48: 0 | F48: 746.4 | G48: 746.13 | H48: 1458.93 | I48: 1425.6 | J48: 2089.68 | K48: 2494.2 | L48: 2494.2 | M48: 2494.2 | N48: 0 | O48: =SUM(C48:N48) -> 13949.34
A49: 6250-0000 | B49: MAINTENANCE SALARIES | C49: 0 | D49: 0 | E49: 0 | F49: 0 | G49: 0 | H49: 1558.62 | I49: 1934.07 | J49: =K49 -> 3246.14 | K49: 3246.14 | L49: 3007.4 | M49: 3340.47 | N49: 0 | O49: =SUM(C49:N49) -> 16332.84
A50: 6265-0000 | B50: TEMPORARY STAFFING | C50: 0 | D50: 0 | E50: 0 | F50: 0 | G50: 0 | H50: 0 | I50: 0 | J50: 678.34 | K50: 0 | L50: 0 | M50: 0 | N50: 0 | O50: =SUM(C50:N50) -> 678.34
A51: 6299-0000 | B51: TOTAL PERSONNEL | C51: =SUM(C48:C50) -> 0 | D51: =SUM(D48:D50) -> 0 | E51: 0 | F51: 746.4 | G51: 746.13 | H51: 3017.55 | I51: 3359.67 | J51: 6014.16 | K51: 5740.34 | L51: 5501.6 | M51: 5834.67 | N51: 0 | O51: =SUM(O48:O50) -> 30960.52
A53: 6300-0000 | B53: MATERIALS
A54: 6310-0000 | B54: JANITORIAL SUPPLIES | C54: 0 | D54: 0 | E54: 0 | F54: 800 | G54: 0 | H54: 0 | I54: 0 | J54: 0 | K54: 0 | L54: 0 | M54: 0 | N54: 0 | O54: =SUM(C54:N54) -> 800
A55: 6322-0000 | B55: Building Repair Supplies | C55: 0 | D55: 0 | E55: 0 | F55: 0 | G55: 0 | H55: 0 | I55: 0 | J55: 0 | K55: 350 | L55: 0 | M55: 0 | N55: 0 | O55: =SUM(C55:N55) -> 350
A56: 6330-0000 | B56: PLUMBING SUPPLIES | C56: 0 | D56: 0 | E56: 0 | F56: 0 | G56: 0 | H56: 0 | I56: 0 | J56: 0 | K56: 147.78 | L56: 0 | M56: 0 | N56: 0 | O56: 147.78
A57: 6341-0000 | B57: POOL SUPPLIES | C57: 0 | D57: 0 | E57: 0 | F57: 0 | G57: 0 | H57: 0 | I57: 700 | J57: 600 | K57: 0 | L57: 0 | M57: 0 | N57: 0 | O57: 1300
A58: 6349-0000 | B58: TOTAL MATERIALS | C58: =SUM(C54:C57) -> 0 | D58: =SUM(D54:D57) -> 0 | E58: 0 | F58: 800 | G58: 0 | H58: 0 | I58: 700 | J58: 600 | K58: 497.78 | L58: 0 | M58: 0 | N58: 0 | O58: 2597.78
A60: 6350-0000 | B60: CONTRACT & REPAIRS
A61: 6376-0000 | B61: CARPET CLEANING | C61: 0 | D61: 0 | E61: 0 | F61: 0 | G61: 0 | H61: 0 | I61: 0 | J61: 0 | K61: 0 | L61: 0 | M61: 0 | N61: 0 | O61: =SUM(C61:N61) -> 0
A62: 6382-0000 | B62: PLUMBING REPAIRS | C62: 0 | D62: 0 | E62: 0 | F62: 0 | G62: 0 | H62: 0 | I62: 0 | J62: 0 | K62: 0 | L62: 730.69 | M62: 0 | N62: 0 | O62: =SUM(C62:N62) -> 730.69
A63: 6399-0000 | B63: TOTAL CONTRACT & REPAIRS | C63: =SUM(C61:C62) -> 0 | D63: =SUM(D61:D62) -> 0 | E63: 0 | F63: 0 | G63: 0 | H63: 0 | I63: 0 | J63: 0 | K63: 0 | L63: 730.69 | M63: 0 | N63: 0 | O63: 730.69
A65: 6400-0000 | B65: UTILITIES
A66: 6410-0000 | B66: ELECTRICITY | C66: 0 | D66: 0 | E66: 500 | F66: 488 | G66: 488.14 | H66: 922.16 | I66: 1422.1 | J66: 984.33 | K66: 947.33 | L66: 950 | M66: 950 | N66: 0 | O66: =SUM(C66:N66) -> 7652.06
A67: 6420-0000 | B67: WATER | C67: 1727.27 | D67: 1000 | E67: 1200 | F67: 1250 | G67: 1030.05 | H67: 2445.92 | I67: 1250 | J67: 1250 | K67: 3963.28 | L67: 1250 | M67: 1250 | N67: 0 | O67: =SUM(C67:N67) -> 17616.52
A68: 6450-0000 | B68: TRASH COLLECTION - CONTRACT | C68: 0 | D68: 0 | E68: 365 | F68: 1479.18 | G68: 1114.18 | H68: 581.12 | I68: 364.45 | J68: 364.22 | K68: 364.05 | L68: 368.26 | M68: 368.26 | N68: 0 | O68: 5368.72
A69: 6465-0000 | B69: INTERNET EXPENSE | C69: 80.3 | D69: 80.3 | E69: 120.45 | F69: 240.9 | G69: 120.45 | H69: 120.45 | I69: 120.45 | J69: 147.04 | K69: 120.45 | L69: 203.35 | M69: 120.45 | N69: 0 | O69: 1474.59
A70: 6499-0000 | B70: TOTAL UTILITY EXPENSES | C70: =SUM(C66:C69) -> 1807.57 | D70: =SUM(D66:D69) -> 1080.3 | E70: 2185.45 | F70: 3458.08 | G70: 2752.82 | H70: 4069.65 | I70: 3157 | J70: 2745.59 | K70: 5395.11 | L70: 2771.61 | M70: 2688.71 | N70: 0 | O70: 32111.89
A72: 6500-0000 | B72: TAXES & INSURANCE
A73: 6530-0000 | B73: HAZARD INSURANCE | C73: 5069.97 | D73: 5069.97 | E73: 5069.97 | F73: 5069.97 | G73: 5069.97 | H73: 5069.97 | I73: 5069.97 | J73: 5069.97 | K73: 5069.97 | L73: 5069.97 | M73: 5069.97 | N73: 0 | O73: =SUM(C73:N73) -> 55769.67
A74: 6550-0000 | B74: REAL ESTATE TAXES | C74: 8521.93 | D74: 8521.93 | E74: 9490.92 | F74: 10067.09 | G74: 10067.09 | H74: 10067.09 | I74: 12067.09 | J74: 10067.09 | K74: 10067.09 | L74: 10067.09 | M74: 10067.09 | N74: 0 | O74: =SUM(C74:N74) -> 109071.5
A75: 6599-0000 | B75: TOTAL TAXES & INSURANCE | C75: =SUM(C73:C74) -> 13591.9 | D75: =SUM(D73:D74) -> 13591.9 | E75: 14560.89 | F75: 15137.06 | G75: 15137.06 | H75: 15137.06 | I75: 17137.06 | J75: 15137.06 | K75: 15137.06 | L75: 15137.06 | M75: 15137.06 | N75: 0 | O75: 164841.17
A77: 6900-0000 | B77: TOTAL OPERATING EXPENSES | C77: =C45+C51+C58+C63+C70+C75 -> 16619.3 | D77: =D45+D51+D58+D63+D70+D75 -> 14647.2 | E77: 17743.47 | F77: 22020.45 | G77: 21501 | H77: 25371.2 | I77: 37533.5033 | J77: 27443.2133 | K77: 33629.6633 | L77: 26142.6933 | M77: 24308.5233 | N77: 0 | O77: 266960.2165
A79: 6999-0000 | B79: CASH FLOW FROM OPERATIONS | C79: =C32-C77 -> 35728.11 | D79: =D32-D77 -> 25391.88 | E79: 22146.2 | F79: 16598.99 | G79: 22087.31 | H79: 15849.62 | I79: 218.1867 | J79: 5775.4467 | K79: -1245.6033 | L79: 7996.5467 | M79: 4744.3267 | N79: 30634 | O79: =O32-O77 -> 185925.0135
A81: 7000-0000 | B81: NON-OPERATING EXPENSES
A83: 7150-0000 | B83: MISC EXPENSES
A84: 7170-0000 | B84: MISC EXPENSE | C84: 0 | D84: 0 | E84: 0 | F84: 1145.52 | G84: 0 | H84: 0 | I84: 2519.5 | J84: 0 | K84: 0 | L84: 653.2 | M84: 0 | N84: 0 | O84: =SUM(C84:N84) -> 4318.22
A85: 7199-0000 | B85: TOTAL MISC EXPENSES | C85: 0 | D85: 0 | E85: 0 | F85: 1145.52 | G85: 0 | H85: 0 | I85: 2519.5 | J85: 0 | K85: 0 | L85: 653.2 | M85: 0 | N85: 0 | O85: =SUM(C85:N85) -> 4318.22
A87: 7200-0000 | B87: DEBT SERVICE
A88: 7220-0000 | B88: MORTGAGE INTEREST -1ST | C88: 21326.73 | D88: 20327.06 | E88: 20844.4 | F88: 14485.5 | G88: 16037.52 | H88: 14485.5 | I88: 14678.62 | J88: 14485.5 | K88: 14485.5 | L88: 14485.5 | M88: 14485.5 | N88: 0 | O88: =SUM(C88:N88) -> 180127.33
A89: 7225-0000 | B89: MORTGAGE INTEREST - 2ND | C89: 0 | D89: 0 | E89: 4967.11 | F89: 4486.42 | G89: 4967.11 | H89: 4967.11 | I89: 5055.24 | J89: 5055.24 | K89: 5055.24 | L89: 5055.24 | M89: 5055.24 | N89: 0 | O89: =SUM(C89:N89) -> 44663.95
A90: 7299-0000 | B90: TOTAL DEBT SERVICE | C90: =SUM(C88:C89) -> 21326.73 | D90: =SUM(D88:D89) -> 20327.06 | E90: 25811.51 | F90: 18971.92 | G90: 21004.63 | H90: 19452.61 | I90: 19733.86 | J90: 19540.74 | K90: 19540.74 | L90: 19540.74 | M90: 19540.74 | N90: 0 | O90: 224791.28
A92: 8999-0000 | B92: TOTAL NON-OPERATING EXPENSES | C92: =C85+C90 -> 21326.73 | D92: =D85+D90 -> 20327.06 | E92: 25811.51 | F92: 20117.44 | G92: 21004.63 | H92: 19452.61 | I92: 22253.36 | J92: 19540.74 | K92: 19540.74 | L92: 20193.94 | M92: 19540.74 | N92: 0 | O92: 229109.5
A94: 9090-0000 | B94: NET INCOME | C94: =C79-C92 -> 14401.38 | D94: =D79-D92 -> 5064.82 | E94: -3665.31 | F94: -3518.45 | G94: 1082.68 | H94: -3602.99 | I94: -22035.1733 | J94: -13765.2933 | K94: -20786.3433 | L94: -12197.3933 | M94: -14796.4133 | N94: 30634 | O94: -43184.4865
